fUSD/lending_fUSD_20240902
["ID","MTS","AMOUNT","RATE_DAILY","PERIOD"]
[336902387,1725238246007,-500.0,0.00022469,2]
[336902389,1725238246016,-830.4,0.00022469,2]
[336902390,1725238246025,-3962.49,0.00022469,2]
[336902392,1725238246034,-620.06459837,0.00022469,2]
[336902394,1725238246044,-500.0,0.00022469,2]
[336902396,1725238246053,-500.0,0.00022469,2]
[336902398,1725238246063,-740.11,0.00022469,2]
[336902400,1725238246072,-500.0,0.00022469,2]
[336902402,1725238246082,-990.22,0.00022469,2]
[336902404,1725238246091,-1096.21,0.00022469,2]
[336902406,1725238246100,-500.0,0.00022469,2]
[336902408,1725238246110,-500.0,0.00022469,2]
[336902410,1725238246119,-500.0,0.00022469,2]
[336902412,1725238246129,-2454.43,0.00022469,2]
[336902414,1725238246138,-919.92,0.00022469,2]
[336902416,1725238246147,-990.51,0.00022469,2]
[336902418,1725238246156,-2290.72,0.00022469,2]
[336902419,1725238246165,-500.0,0.00022469,2]
[336902421,1725238246174,-500.0,0.00022469,2]
[336902423,1725238246183,-500.0,0.00022469,2]
[336902425,1725238246193,-2773.32,0.00022469,2]
[336902427,1725238246202,-923.24,0.00022469,2]
[336902429,1725238246211,-500.0,0.00022469,2]
[336902431,1725238246220,-869.21,0.00022469,2]
[336902433,1725238246229,-500.0,0.00022469,2]
[336902435,1725238246238,-811.03,0.00022469,2]
[336902437,1725238246248,-500.0,0.00022469,2]
[336902439,1725238246257,-1077.26,0.00022469,2]
[336902441,1725238246266,-1708.74,0.00022469,2]
[336902443,1725238246276,-1275.58,0.00022469,2]
[336902445,1725238246285,-500.0,0.00022469,2]
[336902447,1725238246294,-316.87403422,0.00022469,2]
[336902449,1725238246304,-500.0,0.00022469,2]
[336902451,1725238246313,-1041.19,0.00022469,2]
[336902453,1725238246323,-500.0,0.00022469,2]
[336902455,1725238246333,-500.0,0.00022469,2]
[336902457,1725238246342,-500.0,0.00022469,2]
[336902459,1725238246351,-500.0,0.00022469,2]
[336902461,1725238246360,-4993.56,0.00022469,2]
[336902463,1725238246369,-1525.45,0.00022469,2]
[336902465,1725238246378,-500.0,0.00022469,2]
[336902467,1725238246387,-500.0,0.00022469,2]
[336902469,1725238246396,-1068.64,0.00022469,2]
[336902470,1725238246406,-500.0,0.00022469,2]
[336902472,1725238246415,-879.46,0.00022469,2]
[336902474,1725238246424,-1092.14,0.00022469,2]
[336902476,1725238246434,-1760.09,0.00022469,2]
[336902478,1725238246443,-500.0,0.00022469,2]
[336902480,1725238246452,-500.0,0.00022469,2]
[336902482,1725238246462,-500.0,0.00022469,2]
[336902484,1725238246470,-551.35,0.00022469,2]
[336902486,1725238246482,-720.67,0.00022469,2]
[336902488,1725238246491,-500.0,0.00022469,2]
[336902490,1725238246500,-597.27,0.00022469,2]
[336902492,1725238246509,-500.0,0.00022469,2]
[336902494,1725238246518,-500.0,0.00022469,2]
[336902496,1725238246528,-908.54,0.00022469,2]
[336902498,1725238246537,-2712.05,0.00022469,2]
[336902500,1725238246546,-500.0,0.00022469,2]
[336902502,1725238246556,-500.0,0.00022469,2]
[336902504,1725238246565,-1160.56,0.00022469,2]
[336902506,1725238246574,-500.0,0.00022469,2]
[336902508,1725238246583,-503.64003556,0.00022469,2]
[336902510,1725238246592,-500.0,0.00022469,2]
[336902512,1725238246603,-1108.58,0.00022469,2]
[336902514,1725238246616,-500.0,0.00022469,2]
[336902516,1725238246629,-701.01,0.00022469,2]
[336902518,1725238246639,-584.91,0.00022469,2]
[336902520,1725238246651,-720.24,0.00022469,2]
[336902522,1725238246661,-500.0,0.00022469,2]
[336902524,1725238246670,-500.0,0.00022469,2]
[336902526,1725238246680,-500.0,0.00022469,2]
[336902528,1725238246689,-500.0,0.00022469,2]
[336902530,1725238246699,-1279.18,0.00022469,2]
[336902532,1725238246708,-500.0,0.00022469,2]
[336902534,1725238246717,-500.0,0.00022469,2]
[336902535,1725238246728,-3156.66,0.00022469,2]
[336902537,1725238246741,-500.0,0.00022469,2]
[336902539,1725238246750,-500.0,0.00022469,2]
[336902541,1725238246760,-508.26038164,0.00022469,2]
[336902543,1725238246769,-1449.33,0.00022469,2]
[336902545,1725238246778,-500.0,0.00022469,2]
[336902547,1725238246787,-1309.16,0.00022469,2]
[336902549,1725238246796,-1121.3,0.00022469,2]
[336902551,1725238246804,-500.0,0.00022469,2]
[336902553,1725238246813,-500.0,0.00022469,2]
[336902555,1725238246823,-500.0,0.00022469,2]
[336902557,1725238246831,-500.0,0.00022469,2]
[336902559,1725238246840,-2331.75,0.00022469,2]
[336902561,1725238246849,-1061.29,0.00022469,2]
[336902562,1725238246858,-500.0,0.00022469,2]
[336902564,1725238246868,-500.0,0.00022469,2]
[336902566,1725238246877,-1090.16,0.00022469,2]
[336902568,1725238246886,-500.0,0.00022469,2]
[336902570,1725238246895,-500.0,0.00022469,2]
[336902572,1725238246904,-1261.66,0.00022469,2]
[336902574,1725238246913,-1062.9,0.00022469,2]
[336902576,1725238246922,-500.0,0.00022469,2]
[336902578,1725238246930,-975.96,0.00022469,2]
[336902580,1725238246939,-500.0,0.00022469,2]
[336902582,1725238246948,-659.6,0.00022469,2]
[336902584,1725238246957,-952.28,0.00022469,2]
[336902586,1725238246966,-500.0,0.00022469,2]
[336902588,1725238246977,-1558.07,0.00022469,2]
[336902590,1725238246986,-830.39,0.00022469,2]
[336902592,1725238246996,-876.54,0.00022469,2]
[336902594,1725238247005,-500.0,0.00022469,2]
[336902596,1725238247015,-500.0,0.00022469,2]
[336902598,1725238247025,-926.29,0.00022469,2]
[336902600,1725238247034,-500.0,0.00022469,2]
[336902602,1725238247043,-860.71,0.00022469,2]
[336902603,1725238247053,-629.85,0.00022469,2]
[336902605,1725238247062,-582.14,0.00022469,2]
[336902607,1725238247072,-500.0,0.00022469,2]
[336902609,1725238247082,-500.0,0.00022469,2]
[336902611,1725238247091,-509.85,0.00022469,2]
[336902613,1725238247101,-500.0,0.00022469,2]
[336902615,1725238247110,-1114.7,0.00022469,2]
[336902617,1725238247119,-500.0,0.00022469,2]
[336902619,1725238247129,-500.0,0.00022469,2]
[336902621,1725238247138,-500.0,0.00022469,2]
[336902623,1725238247148,-500.0,0.00022469,2]
[336902625,1725238247157,-500.0,0.00022469,2]
[336902627,1725238247166,-2598.05,0.00022469,2]
[336902629,1725238247175,-619.99,0.00022469,2]
[336902631,1725238247184,-611.98,0.00022469,2]
[336902633,1725238247194,-500.0,0.00022469,2]
[336902635,1725238247204,-612.32,0.00022469,2]
[336902637,1725238247214,-949.43,0.00022469,2]
[336902639,1725238247223,-995.37,0.00022469,2]
[336902641,1725238247236,-500.0,0.00022469,2]
[336902643,1725238247245,-500.0,0.00022469,2]
[336902645,1725238247254,-797.17,0.00022469,2]
[336902647,1725238247264,-500.0,0.00022469,2]
[336902649,1725238247273,-694.0,0.00022469,2]
[336902651,1725238247282,-680.53,0.00022469,2]
[336902653,1725238247291,-4699.84,0.00022469,2]
[336902655,1725238247301,-578.11,0.00022469,2]
[336902657,1725238247310,-500.0,0.00022469,2]
[336902658,1725238247319,-500.0,0.00022469,2]
[336902661,1725238247329,-500.0,0.00022469,2]
[336902663,1725238247339,-1135.36,0.00022469,2]
[336902665,1725238247348,-500.0,0.00022469,2]
[336902666,1725238247358,-843.51,0.00022469,2]
[336902668,1725238247367,-398.27850182,0.00022469,2]
[336902670,1725238247377,-884.08,0.00022469,2]
[336902672,1725238247386,-404.88095934,0.00022469,2]
[336902674,1725238247395,-500.0,0.00022469,2]
[336902676,1725238247405,-1266.11,0.00022469,2]
[336902678,1725238247414,-500.0,0.00022469,2]
[336902680,1725238247424,-2007.89,0.00022469,2]
[336902682,1725238247434,-500.0,0.00022469,2]
[336902684,1725238247443,-500.0,0.00022469,2]
[336902686,1725238247453,-500.0,0.00022469,2]
[336902688,1725238247462,-500.0,0.00022469,2]
[336902690,1725238247472,-500.0,0.00022469,2]
[336902692,1725238247483,-860.2,0.00022469,2]
[336902694,1725238247494,-636.3,0.00022469,2]
[336902696,1725238247503,-921.0,0.00022469,2]
[336902699,1725238247513,-647.06,0.00022469,2]
[336902701,1725238247523,-940.54,0.00022469,2]
[336902703,1725238247533,-949.83,0.00022469,2]
[336902705,1725238247542,-1030.0,0.00022469,2]
[336902707,1725238247552,-500.0,0.00022469,2]
[336902708,1725238247561,-504.57,0.00022469,2]
[336902710,1725238247570,-500.0,0.00022469,2]
[336902712,1725238247579,-500.0,0.00022469,2]
[336902715,1725238247589,-736.76,0.00022469,2]
[336902717,1725238247599,-981.33,0.00022469,2]
[336902718,1725238247613,-795.58,0.00022469,2]
[336902720,1725238247623,-840.26,0.00022469,2]
[336902722,1725238247632,-690.32,0.00022469,2]
[336902724,1725238247641,-1161.97,0.00022469,2]
[336902726,1725238247652,-500.0,0.00022469,2]
[336902728,1725238247661,-1422.92,0.00022469,2]
[336902730,1725238247670,-500.0,0.00022469,2]
[336902732,1725238247679,-500.0,0.00022469,2]
[336902734,1725238247690,-953.27,0.00022469,2]
[336902736,1725238247699,-506.4,0.00022469,2]
[336902738,1725238247711,-914.86,0.00022469,2]
[336902740,1725238247722,-538.26,0.00022469,2]
[336902742,1725238247733,-734.6,0.00022469,2]
[336902744,1725238247743,-500.0,0.00022469,2]
[336902746,1725238247752,-500.0,0.00022469,2]
[336902748,1725238247763,-500.0,0.00022469,2]
[336902750,1725238247773,-625.81,0.00022469,2]
[336902752,1725238247783,-500.0,0.00022469,2]
[336902754,1725238247792,-500.0,0.00022469,2]
[336902756,1725238247801,-802.49,0.00022469,2]
[336902758,1725238247811,-918.29,0.00022469,2]
[336902760,1725238247820,-910.7,0.00022469,2]
[336902762,1725238247830,-2278.46,0.00022469,2]
[336902764,1725238247839,-860.96,0.00022469,2]
[336902766,1725238247848,-500.0,0.00022469,2]
[336902768,1725238247858,-1342.74,0.00022469,2]
[336902770,1725238247867,-500.0,0.00022469,2]
[336902772,1725238247877,-500.0,0.00022469,2]
[336902773,1725238247886,-880.93,0.00022469,2]
[336902775,1725238247896,-500.0,0.00022469,2]
[336902778,1725238247906,-500.0,0.00022469,2]
[336902780,1725238247916,-678.86,0.00022469,2]
[336902782,1725238247926,-1658.22,0.00022469,2]
[336902784,1725238247936,-500.0,0.00022469,2]
[336902786,1725238247945,-500.0,0.00022469,2]
[336902788,1725238247956,-504.21,0.00022469,2]
[336902790,1725238247967,-500.0,0.00022469,2]
[336902792,1725238247977,-999.95,0.00022469,2]
[336902794,1725238247987,-712.21,0.00022469,2]
[336902796,1725238247996,-975.7,0.00022469,2]
[336902798,1725238248006,-520.93,0.00022469,2]
[336902800,1725238248015,-554.54,0.00022469,2]
[336902802,1725238248025,-500.0,0.00022469,2]
[336902804,1725238248035,-629.32,0.00022469,2]
[336902806,1725238248044,-999.0,0.00022469,2]
[336902808,1725238248054,-500.0,0.00022469,2]
[336902810,1725238248064,-906.01,0.00022469,2]
[336902812,1725238248073,-500.0,0.00022469,2]
[336902813,1725238248083,-537.46,0.00022469,2]
[336902814,1725238248092,-500.0,0.00022469,2]
[336902815,1725238248101,-500.0,0.00022469,2]
[336902816,1725238248110,-680.12,0.00022469,2]
[336902817,1725238248120,-1104.1,0.00022469,2]
[336902818,1725238248129,-1140.92,0.00022469,2]
[336902819,1725238248139,-215.5215102,0.00022469,2]
[336902820,1725238248149,-1670.02,0.00022469,2]
[336902821,1725238248159,-736.18,0.00022469,2]
[336902822,1725238248168,-626.92,0.00022469,2]
[336902823,1725238248178,-512.15,0.00022469,2]
[336902824,1725238248188,-500.0,0.00022469,2]
[336902825,1725238248198,-500.0,0.00022469,2]
[336902826,1725238248207,-1406.25,0.00022469,2]
[336902827,1725238248217,-500.0,0.00022469,2]
[336902828,1725238248227,-583.89,0.00022469,2]
[336902829,1725238248237,-841.04,0.00022469,2]
[336902830,1725238248246,-500.0,0.00022469,2]
[336902831,1725238248256,-500.0,0.00022469,2]
[336902833,1725238248266,-1300.02,0.00022469,2]
[336902835,1725238248275,-251.60842329,0.00022469,2]
[336902837,1725238248285,-500.0,0.00022469,2]
[336902839,1725238248295,-500.0,0.00022469,2]
[336902841,1725238248304,-1389.07,0.00022469,2]
[336902843,1725238248314,-500.0,0.00022469,2]
[336902845,1725238248324,-500.0,0.00022469,2]
[336902848,1725238248334,-778.12,0.00022469,2]
[336902850,1725238248344,-500.0,0.00022469,2]
[336902851,1725238248353,-500.0,0.00022469,2]
[336902853,1725238248363,-500.0,0.00022469,2]
[336902855,1725238248373,-897.44,0.00022469,2]
[336902857,1725238248383,-500.0,0.00022469,2]
[336902859,1725238248394,-500.0,0.00022469,2]
[336902861,1725238248405,-1015.19,0.00022469,2]
[336902864,1725238248414,-869.32,0.00022469,2]
[336902866,1725238248425,-1575.13,0.00022469,2]
[336902867,1725238248435,-1348.81,0.00022469,2]
[336902869,1725238248445,-783.04,0.00022469,2]
[336902871,1725238248454,-500.0,0.00022469,2]
[336902873,1725238248464,-619.64,0.00022469,2]
[336902875,1725238248474,-500.0,0.00022469,2]
[336902877,1725238248484,-852.63,0.00022469,2]
[336902879,1725238248494,-982.17,0.00022469,2]
[336902881,1725238248504,-450.55460519,0.00022469,2]
[336902883,1725238248514,-500.0,0.00022469,2]
[336902885,1725238248524,-1643.46,0.00022469,2]
[336902887,1725238248534,-500.0,0.00022469,2]
[336902889,1725238248544,-500.0,0.00022469,2]
[336902891,1725238248553,-904.14,0.00022469,2]
[336902893,1725238248563,-929.64,0.00022469,2]
[336902896,1725238248572,-500.0,0.00022469,2]
[336902898,1725238248583,-1073.63,0.00022469,2]
[336902900,1725238248593,-683.57,0.00022469,2]
[336902902,1725238248603,-928.96,0.00022469,2]
[336902904,1725238248616,-524.66,0.00022469,2]
[336902905,1725238248626,-500.0,0.00022469,2]
[336902907,1725238248635,-954.72,0.00022469,2]
[336902910,1725238248646,-500.0,0.00022469,2]
[336902911,1725238248656,-500.0,0.00022469,2]
[336902913,1725238248665,-701.68,0.00022469,2]
[336902915,1725238248675,-1531.74,0.00022469,2]
[336902917,1725238248687,-910.3,0.00022469,2]
[336902920,1725238248697,-500.0,0.00022469,2]
[336902921,1725238248707,-500.0,0.00022469,2]
[336902924,1725238248718,-738.04,0.00022469,2]
[336902925,1725238248728,-500.0,0.00022469,2]
[336902927,1725238248738,-500.0,0.00022469,2]
[336902930,1725238248748,-858.97,0.00022469,2]
[336902931,1725238248758,-500.0,0.00022469,2]
[336902933,1725238248768,-922.06,0.00022469,2]
[336902935,1725238248778,-1354.06,0.00022469,2]
[336902937,1725238248788,-500.0,0.00022469,2]
[336902939,1725238248797,-500.0,0.00022469,2]
[336902941,1725238248807,-1420.96,0.00022469,2]
[336902944,1725238248817,-528.89,0.00022469,2]
[336902946,1725238248826,-500.0,0.00022469,2]
[336902948,1725238248836,-695.75,0.00022469,2]
[336902950,1725238248847,-909.5,0.00022469,2]
[336902952,1725238248856,-1178.56,0.00022469,2]
[336902954,1725238248866,-500.0,0.00022469,2]
[336902956,1725238248877,-592.75,0.00022469,2]
[336902958,1725238248887,-1129.45,0.00022469,2]
[336902960,1725238248897,-959.2,0.00022469,2]
[336902962,1725238248907,-897.58,0.00022469,2]
[336902964,1725238248917,-1878.34,0.00022469,2]
[336902966,1725238248927,-500.0,0.00022469,2]
[336902968,1725238248938,-1121.97,0.00022469,2]
[336902970,1725238248948,-500.0,0.00022469,2]
[336902972,1725238248958,-500.0,0.00022469,2]
[336902974,1725238248967,-846.69,0.00022469,2]
[336902976,1725238248979,-613.58,0.00022469,2]
[336902978,1725238248995,-1089.57,0.00022469,2]
[336902980,1725238249004,-668.62,0.00022469,2]
[336902982,1725238249014,-500.0,0.00022469,2]
[336902984,1725238249024,-500.0,0.00022469,2]
[336902986,1725238249034,-544.18,0.00022469,2]
[336902988,1725238249044,-577.68,0.00022469,2]
[336902990,1725238249054,-500.0,0.00022469,2]
[336902992,1725238249064,-500.0,0.00022469,2]
[336902994,1725238249075,-500.0,0.00022469,2]
[336902996,1725238249085,-500.0,0.00022469,2]
[336902998,1725238249095,-500.0,0.00022469,2]
[336903000,1725238249105,-500.0,0.00022469,2]
[336903002,1725238249115,-946.88,0.00022469,2]
[336903004,1725238249125,-500.0,0.00022469,2]
[336903006,1725238249135,-500.0,0.00022469,2]
[336903008,1725238249146,-1632.33,0.00022469,2]
[336903010,1725238249156,-500.0,0.00022469,2]
[336903012,1725238249167,-929.11,0.00022469,2]
[336903014,1725238249177,-500.0,0.00022469,2]
[336903016,1725238249187,-589.63,0.00022469,2]
[336903018,1725238249197,-500.0,0.00022469,2]
[336903020,1725238249207,-390.98666285,0.00022469,2]
[336903023,1725238249219,-1159.93,0.00022469,2]
[336903025,1725238249231,-500.0,0.00022469,2]
[336903052,1725238249498,-500.0,0.00022469,2]
[336903054,1725238249509,-500.0,0.00022469,2]
[336903056,1725238249518,-500.0,0.00022469,2]
[336903058,1725238249528,-3360.86,0.00022469,2]
[336903060,1725238249538,-500.0,0.00022469,2]
[336903062,1725238249548,-677.74,0.00022469,2]
[336903064,1725238249557,-500.0,0.00022469,2]
[336903066,1725238249566,-536.55,0.00022469,2]
[336903068,1725238249576,-500.0,0.00022469,2]
[336903070,1725238249586,-500.0,0.00022469,2]
[336903072,1725238249595,-635.15,0.00022469,2]
[336903074,1725238249607,-500.0,0.00022469,2]
[336903076,1725238249618,-744.7,0.00022469,2]
[336903078,1725238249628,-500.0,0.00022469,2]
[336903080,1725238249637,-2325.9,0.00022469,2]
[336903082,1725238249647,-287.22,0.00022469,2]
[336903084,1725238249656,-500.0,0.00022469,2]
[336903086,1725238249666,-1035.8,0.00022469,2]
[336903088,1725238249675,-500.0,0.00022469,2]
[336903090,1725238249685,-2163.22,0.00022469,2]
[336903092,1725238249696,-2505.28,0.00022469,2]
[336903094,1725238249706,-824.08,0.00022469,2]
[336903096,1725238249715,-1738.59,0.00022469,2]
[336903098,1725238249725,-500.0,0.00022469,2]
[336903100,1725238249739,-957.56,0.00022469,2]
[336903102,1725238249749,-500.0,0.00022469,2]
[336903104,1725238249759,-1208.37,0.00022469,2]
[336903106,1725238249768,-500.0,0.00022469,2]
[336903108,1725238249778,-500.0,0.00022469,2]
[336903110,1725238249788,-654.85,0.00022469,2]
[336903112,1725238249797,-500.0,0.00022469,2]
[336903114,1725238249807,-1559.86,0.00022469,2]
[336903116,1725238249818,-624.26,0.00022469,2]
[336903118,1725238249828,-888.12,0.00022469,2]
[336903120,1725238249837,-512.85,0.00022469,2]
[336903122,1725238249848,-726.58,0.00022469,2]
[336903124,1725238249858,-500.0,0.00022469,2]
[336903126,1725238249867,-500.0,0.00022469,2]
[336903128,1725238249877,-1930.66,0.00022469,2]
[336903130,1725238249886,-1030.59,0.00022469,2]
[336903132,1725238249896,-1014.2,0.00022469,2]
[336903134,1725238249905,-955.91,0.00022469,2]
[336903136,1725238249915,-500.0,0.00022469,2]
[336903138,1725238249924,-1752.68,0.00022469,2]
[336903140,1725238249933,-500.0,0.00022469,2]
[336903142,1725238249942,-543.54,0.00022469,2]
[336903144,1725238249952,-500.0,0.00022469,2]
[336903146,1725238249962,-500.0,0.00022469,2]
[336903148,1725238249971,-1679.52,0.00022469,2]
[336903150,1725238249983,-816.81,0.00022469,2]
[336903152,1725238249993,-1299.41,0.00022469,2]
[336903154,1725238250002,-1326.56,0.00022469,2]
[336903155,1725238250012,-500.0,0.00022469,2]
[336903156,1725238250021,-500.0,0.00022469,2]
[336903157,1725238250030,-500.0,0.00022469,2]
[336903158,1725238250040,-1387.77,0.00022469,2]
[336903159,1725238250049,-500.0,0.00022469,2]
[336903160,1725238250058,-500.0,0.00022469,2]
[336903161,1725238250068,-795.0,0.00022477,2]
[336903162,1725238250077,-500.0,0.00022477,2]
[336903163,1725238250087,-500.0,0.00022477,2]
[336903164,1725238250097,-500.0,0.00022477,2]
[336903165,1725238250107,-500.0,0.00022477,2]
[336903166,1725238250116,-500.0,0.00022477,2]
[336903167,1725238250126,-500.0,0.00022477,2]
[336903168,1725238250135,-500.0,0.00022477,2]
[336903169,1725238250145,-500.0,0.00022477,2]
[336903170,1725238250155,-500.0,0.00022477,2]
[336903171,1725238250164,-500.0,0.00022477,2]
[336903172,1725238250174,-252.03567581,0.00022477,2]
[336903173,1725238250185,-500.0,0.00022477,2]
[336903174,1725238250194,-500.0,0.00022477,2]
[336903175,1725238250204,-500.0,0.00022477,2]
[336903176,1725238250214,-848.57,0.00022477,2]
[336903177,1725238250223,-518.97612692,0.00022477,2]
[336903178,1725238250236,-500.0,0.00022477,2]
[336903179,1725238250246,-423.22918496,0.00022477,2]
[336903180,1725238250256,-500.0,0.00022477,2]
[336903181,1725238250265,-500.0,0.00022477,2]
[336903182,1725238250276,-500.0,0.00022477,2]
[336903183,1725238250285,-500.0,0.00022477,2]
[336903184,1725238250295,-500.0,0.00022477,2]
[336903185,1725238250305,-580.34,0.00022477,2]
[336903186,1725238250314,-340.21090387,0.00022477,2]
[336903187,1725238250324,-500.0,0.00022477,2]
[336903188,1725238250333,-1201.04,0.00022477,2]
[336903189,1725238250343,-500.0,0.00022477,2]
[336903190,1725238250353,-1409.23,0.00022477,2]
[336903191,1725238250363,-500.0,0.00022477,2]
[336903192,1725238250373,-500.0,0.00022477,2]
[336903193,1725238250382,-630.9,0.00022477,2]
[336903194,1725238250392,-320.62950862,0.00022477,2]
[336903195,1725238250401,-500.0,0.00022477,2]
[336903196,1725238250412,-523.43,0.00022477,2]
[336903197,1725238250422,-256.54599295,0.00022477,2]
[336903198,1725238250432,-188.90741005,0.00022477,2]
[336903199,1725238250442,-500.0,0.00022477,2]
[336903200,1725238250452,-500.0,0.00022477,2]
[336903201,1725238250462,-270.16489889,0.00022477,2]
[336903202,1725238250471,-500.0,0.00022477,2]
[336903203,1725238250482,-500.0,0.00022477,2]
[336903204,1725238250492,-660.1,0.00022477,2]
[336903205,1725238250502,-500.0,0.00022477,2]
[336903206,1725238250511,-504.65,0.00022477,2]
[336903207,1725238250521,-565.85,0.00022477,2]
[336903208,1725238250531,-500.0,0.00022477,2]
[336903209,1725238250540,-500.0,0.00022477,2]
[336903210,1725238250550,-500.0,0.00022477,2]
[336903211,1725238250559,-500.0,0.00022477,2]
[336903212,1725238250569,-500.0,0.00022477,2]
[336903213,1725238250579,-500.0,0.00022477,2]
[336903214,1725238250589,-500.0,0.00022477,2]
[336903215,1725238250598,-500.0,0.00022477,2]
[336903216,1725238250611,-500.0,0.00022477,2]
[336903217,1725238250621,-945.93,0.00022477,2]
[336903218,1725238250630,-554.77,0.00022477,2]
[336903219,1725238250639,-500.0,0.00022477,2]
[336903221,1725238250650,-1927.8,0.00022477,2]
[336903223,1725238250659,-500.0,0.00022477,2]
[336903225,1725238250669,-500.0,0.00022477,2]
[336903227,1725238250679,-500.0,0.00022477,2]
[336903229,1725238250689,-449.52949359,0.00022477,2]
[336903232,1725238250698,-500.0,0.00022477,2]
[336903234,1725238250708,-1058.15,0.00022477,2]
[336903236,1725238250717,-1160.29,0.00022477,2]
[336903238,1725238250727,-500.0,0.00022477,2]
[336903239,1725238250737,-1000.0,0.00022477,2]
[336903241,1725238250746,-539.49,0.00022477,2]
[336903243,1725238250756,-571.1155218,0.00022477,2]
[336903245,1725238250766,-520.33,0.00022477,2]
[336903247,1725238250775,-500.0,0.00022477,2]
[336903249,1725238250785,-500.0,0.00022477,2]
[336903251,1725238250794,-500.0,0.00022477,2]
[336903253,1725238250803,-500.0,0.00022477,2]
[336903255,1725238250812,-500.0,0.00022477,2]
[336903257,1725238250821,-511.3,0.00022477,2]
[336903260,1725238250830,-1376.88,0.00022477,2]
[336903262,1725238250839,-500.0,0.00022477,2]
[336903264,1725238250849,-500.0,0.00022477,2]
[336903265,1725238250858,-500.0,0.00022477,2]
[336903267,1725238250867,-500.0,0.00022477,2]
[336903269,1725238250877,-635.69,0.00022477,2]
[336903271,1725238250886,-500.0,0.00022477,2]
[336903273,1725238250895,-839.59,0.00022477,2]
[336903275,1725238250905,-500.0,0.00022477,2]
[336903277,1725238250914,-321.27600019,0.00022477,2]
[336903278,1725238250923,-500.0,0.00022477,2]
[336903280,1725238250932,-500.0,0.00022477,2]
[336903282,1725238250941,-500.0,0.00022477,2]
[336903284,1725238250950,-807.14,0.00022477,2]
[336903286,1725238250960,-500.0,0.00022477,2]
[336903288,1725238250969,-500.0,0.00022477,2]
[336903290,1725238250978,-500.0,0.00022477,2]
[336903292,1725238250987,-500.0,0.00022477,2]
[336903294,1725238250996,-500.0,0.00022477,2]
[336903296,1725238251005,-500.0,0.00022477,2]
[336903298,1725238251015,-500.0,0.00022477,2]
[336903300,1725238251024,-1423.55,0.00022477,2]
[336903302,1725238251033,-529.01,0.00022477,2]
[336903304,1725238251042,-196.369075,0.00022477,2]
[336903306,1725238251052,-500.0,0.00022477,2]
[336903308,1725238251061,-500.0,0.00022477,2]
[336903310,1725238251070,-1593.67,0.00022477,2]
[336903312,1725238251080,-500.0,0.00022477,2]
[336903314,1725238251089,-1678.91,0.00022477,2]
[336903316,1725238251099,-500.0,0.00022477,2]
[336903318,1725238251109,-995.85,0.00022477,2]
[336903320,1725238251119,-500.0,0.00022477,2]